Cogmind - Beta 10.2 @@@ ROGUE MODE // 2021.10.22 @ 23:01:22 Player: Wakanaka Result: Destroyed self with Mini Grenade Launcher Performance ------------- Evolutions (1) 500 Regions Visited (3) 600 Robots Destroyed (24) 120 Value Destroyed (416) 416 Prototype IDs (3) 60 Alien Tech Used (0) 0 Bonus (0) 0 TOTAL SCORE: 1696 Bonus ------- None Cogmind --------- Core Integrity 0/400 Matter 267/300 Energy 10/100 System Corruption 2% Temperature Cool (0) Movement Core (300) Ox5 Location -9/Mines Parts ------- > --- POWER (1) -------- (None) > --- PROPULSION (2) --- (None) > --- UTILITY (4) ------ Large Storage Unit Hacking Suite > --- WEAPON (2) ------- Mini Grenade Launcher > --- INVENTORY (10) --- Improved Terrain Scanner Terrain Scan Processor Targeting Computer Utility Shielding Light Armor Plating Datajack Peak State ------------ > --- POWER ------------ Light Nuclear Core > --- PROPULSION ------- Wheel Wheel > --- UTILITY ---------- Large Storage Unit Improved Terrain Scanner ECM Suite Hacking Suite > --- WEAPON ----------- Beam Rifle Light Assault Rifle > --- INVENTORY -------- Light Ion Engine Wheel Improved Terrain Scanner Targeting Computer Utility Shielding Light Armor Plating Small Laser Assault Rifle Datajack [Rating: 16] Favorites ----------- Power Light Nuclear Core Engine Light Ion Engine Power Core Light Nuclear Core Propulsion Wheel Wheel Wheel Utility Improved Terrain Scanner Device Improved Terrain Scanner Storage Large Storage Unit Processor Seismic Analyzer Hackware Hacking Suite Weapon Light Assault Rifle Energy Gun Medium Laser Energy Cannon Light EM Pulse Cannon Ballistic Gun Light Assault Rifle Launcher Mini Grenade Launcher Build | -11 -10 -9 -9 ------- Run | Scr Mat Mat Min Slots Evolved 2 | . . 2 . Power . | . . . . Propulsion . | . . . . Utility 2 | . . 2 . Weapon . | . . . . Parts Attached 29 | 9 8 4 8 Power 4 | 1 2 . 1 Engine 3 | 1 1 . 1 Core 1 | . 1 . . Reactor . | . . . . Propulsion 9 | 4 3 1 1 Treads . | . . . . Leg . | . . . . Wheel 9 | 4 3 1 1 Hover . | . . . . Flight . | . . . . Utility 5 | 2 1 2 . Device 2 | 1 . 1 . Storage 1 | . 1 . . Processor 1 | 1 . . . Hackware 1 | . . 1 . Protection . | . . . . Artifact . | . . . . Weapon 11 | 2 2 1 6 Energy Gun 3 | 1 . 1 1 Energy Cannon 1 | . . . 1 Ballistic Gun 6 | 1 2 . 3 Ballistic Cannon . | . . . . Launcher 1 | . . . 1 Special Weapon . | . . . . Impact Weapon . | . . . . Slashing Weapon . | . . . . Piercing Weapon . | . . . . Special Melee Weapon . | . . . . Unidentified Prototypes . | . . . . Parts Lost 16 | . 4 . 12 Power 2 | . . . 2 Propulsion 4 | . 2 . 2 Utility 2 | . . . 2 Weapon 8 | . 2 . 6 Highest Loss Streak 10 | . 3 . 10 Average Slot Usage (%) 91 | . 89 100 83 Engine 2 | . 5 . . Core 9 | . 8 11 8 Wheel 19 | . 19 22 17 Device 17 | . 14 22 19 Storage 6 | . 2 11 11 Processor 6 | . 11 . . Hackware 4 | . . 11 11 Energy Gun 5 | . 3 8 6 Ballistic Gun 18 | . 23 13 8 Naked Turns . | . . . . Heaviest Build 27 | 7 25 27 27 Greatest Support 32 | 32 20 20 20 Greatest Overweight (x) 2 | . 2 1 1 Average Overweight (x) . | . . 1 1 Largest Inventory Capacity 10 | 4 10 10 10 Average Capacity 6 | 4 4 10 10 Most Carried 10 | 4 6 10 10 Average Carried 5 | 2 4 6 9 Final Capacity 10 | 4 10 10 10 Final Carried 10 | 4 6 10 6 Class Distribution -------------------- 91% | Scavenger-Mutant 8% | Mutant Dominant Class ---------------- Scavenger-Mutant | -10/Materials Scavenger-Mutant | -9/Materials Scavenger-Mutant | -9/Mines Resources | -11 -10 -9 -9 ----------- Run | Scr Mat Mat Min Matter Collected 561 | 304 173 . 84 Remotely . | . . . . Salvage Created 721 | 156 384 43 138 Parts 58 | 14 32 5 7 Haulers Intercepted 1 | . . 1 . Recyclers Shooed 1 | 1 . . . Parts Field Recycled . | . . . . Retrieved Matter . | . . . . Parts Self-Destructed . | . . . . Prevented . | . . . . Kills | -11 -10 -9 -9 ------- Run | Scr Mat Mat Min Combat Hostiles Destroyed 18 | . 10 . 8 Guns 13 | . 10 . 3 Cannons 1 | . . . 1 AOE 4 | . . . 4 Classes Destroyed 9 | 2 5 1 1 Worker 1 | . 1 . . Tunneler 5 | 5 . . . Hauler 1 | . . 1 . Recycler 2 | 1 . . 1 Operator 1 | . 1 . . Watcher 1 | . 1 . . Swarmer 6 | . 3 . 3 Grunt 7 | . 7 . . Assembled 5 | . . . 5 Best Kill Streak 6 | 6 5 1 6 Combat Bots Only 5 | . 5 . 5 Max Kills in Single Turn 5 | 1 1 1 5 Gunslinging . | . . . . Exploded 4 | . . . 4 Melee . | . . . . Uniques/NPCs Destroyed . | . . . . Combat | -11 -10 -9 -9 -------- Run | Scr Mat Mat Min Damage Taken 1608 | . 489 . 1119 Core 494 | . 85 . 409 Absorbed by Shields . | . . . . Core Remaining (%) 83 | 100 66 . . Volleys Fired 75 | 14 34 6 21 Largest 2 | 2 2 2 2 Hottest 76 | 70 70 76 76 Shots Fired 131 | 28 61 12 30 Gun 128 | 28 61 12 27 Cannon 2 | . . . 2 Launcher 1 | . . . 1 Special . | . . . . Kinetic 92 | 14 54 6 18 Thermal 36 | 14 7 6 9 Explosive 1 | . . . 1 Electromagnetic 2 | . . . 2 Robot Hit Streak 27 | 5 27 3 4 Robot Miss Streak 8 | 2 3 4 8 Penetration Max . | . . . . Secondary Targets 1 | . 1 . . Max Gunslinging Chain 1 | . 1 . . Shots Hit Robots 81 | 19 41 6 15 Core Hits 43 | 7 21 2 13 Critical Hits 1 | . 1 . . Critical Kills 1 | . 1 . . Critical Parts Destroyed . | . . . . Melee Attacks . | . . . . Impact . | . . . . Slashing . | . . . . Piercing . | . . . . Sneak Attacks . | . . . . Combat Hostiles . | . . . . Follow-up Attacks . | . . . . Damage Inflicted 1271 | 180 455 53 583 Guns 846 | 180 455 53 158 Cannons 20 | . . . 20 Explosions 405 | . . . 405 Melee . | . . . . Ramming . | . . . . Kinetic 571 | 56 418 25 72 Thermal 275 | 124 37 28 86 Explosive 405 | . . . 405 Electromagnetic 20 | . . . 20 Impact . | . . . . Slashing . | . . . . Piercing . | . . . . Highest Corruption 2 | . . . 2 Average Corruption 2 | . . . 2 Corruption Purged . | . . . . Overload Shots . | . . . . Overflow Damage 43 | . . . 43 Projectiles . | . . . . Explosions 43 | . . . 43 Melee . | . . . . Knockbacks . | . . . . Impact . | . . . . Kinetic . | . . . . Secondary . | . . . . Self-Inflicted Damage 30 | . . . 30 Shots 1 | . . . 1 Rammed . | . . . . Targets Rammed . | . . . . Kicked . | . . . . Crushed . | . . . . Highest Temperature 185 | 80 185 34 73 Average Temperature 44 | 28 65 21 28 Received Heat Transfer 273 | . 273 . . Siege Activations . | . . . . Robots Corrupted . | . . . . Combat Hostiles . | . . . . Parts Fried . | . . . . Impact Corruptions . | . . . . Robots Melted . | . . . . Combat Hostiles . | . . . . Parts Melted 4 | 3 . . 1 Heat Transferred 766 | 370 111 74 211 Parts Sabotaged . | . . . . Parts Stolen . | . . . . Parts Stripped . | . . . . Power Chain Reactions . | . . . . Missiles Intercepted . | . . . . Alert | -11 -10 -9 -9 ------- Run | Scr Mat Mat Min Peak Influence 312 | 30 312 183 120 Initial 131 | . 19 131 70 Average 121 | 12 166 145 86 Maximum Alert Level 1 | . 1 . . Low Security (%) 76 | 100 48 100 100 Level 1 23 | . 51 . . Level 2 . | . . . . Level 3 . | . . . . Level 4 . | . . . . Level 5 . | . . . . High Security . | . . . . Max Security . | . . . . Squads Dispatched 4 | . 2 2 . Investigation . | . . . . Extermination . | . . . . Reinforcement 4 | . 2 2 . Assault . | . . . . Garrison . | . . . . Intercept . | . . . . Construction Impeded . | . . . . Haulers Reinforced . | . . . . Stealth | -11 -10 -9 -9 --------- Run | Scr Mat Mat Min Distress Signals . | . . . . Communications Jammed . | . . . . Distress Signals . | . . . . Times Spotted 34 | . 17 2 15 Peak Tracking Total 11 | . 5 1 11 Tactical Retreats . | . . . . Traps | -11 -10 -9 -9 ------- Run | Scr Mat Mat Min Traps Triggered . | . . . . Indirectly . | . . . . Trap Hack Attempts . | . . . . Triggered . | . . . . Disarmed . | . . . . Reprogrammed . | . . . . Reused . | . . . . Traps Extracted . | . . . . Installed . | . . . . Triggered . | . . . . Machines | -11 -10 -9 -9 ---------- Run | Scr Mat Mat Min Machines Disabled 1 | . . 1 . Max in Single Turn 1 | . . 1 . Machines Sabotaged . | . . . . Garrisons Compromised . | . . . . Overloaded Fab Kills . | . . . . Fab Network Shutdowns . | . . . . Hacking | -11 -10 -9 -9 --------- Run | Scr Mat Mat Min Machines Accessed 3 | . 3 . . Terminals 2 | . 2 . . Fabricators . | . . . . Repair Stations . | . . . . Recycling Units 1 | . 1 . . Scanalyzers . | . . . . Garrison Access . | . . . . Total Hacks 5 | . 5 . . Successful 3 | . 3 . . Failed 2 | . 2 . . Catastrophic . | . . . . Database Lockouts . | . . . . Manual . | . . . . Terminals 4 | . 4 . . Fabricators . | . . . . Repair Stations . | . . . . Recycling Units 1 | . 1 . . Scanalyzers . | . . . . Garrison Access . | . . . . Terminal Hacks 2 | . 2 . . Prototype ID Bank 1 | . 1 . . Branch Access Points 1 | . 1 . . Fabricator Hacks . | . . . . Repair Station Hacks . | . . . . Recycling Unit Hacks 1 | . 1 . . Report Inventory 1 | . 1 . . Scanalyzer . | . . . . Garrison Access Hacks . | . . . . Unauthorized Hacks . | . . . . Terminals . | . . . . Fabricators . | . . . . Repair Stations . | . . . . Recycling Units . | . . . . Scanalyzers . | . . . . Garrison Access . | . . . . Data Cores Recovered . | . . . . Used . | . . . . Hacking Detections 1 | . 1 . . Full Trace Events . | . . . . Feedback Events . | . . . . Feedback Blocked . | . . . . Robot Schematics Acquired . | . . . . Robots Built . | . . . . Matter . | . . . . Time . | . . . . Total Robot Build Rating . | . . . . Part Schematics Acquired . | . . . . Parts Built . | . . . . Matter . | . . . . Time . | . . . . Total Part Build Rating . | . . . . Parts Repaired . | . . . . Time . | . . . . Parts Recycled . | . . . . Recycled Matter . | . . . . Retrieved Matter . | . . . . Retrieved Components . | . . . . Parts Scanalyzed . | . . . . Part Schematics Acquired . | . . . . Parts Damaged . | . . . . Bothacking | -11 -10 -9 -9 ------------ Run | Scr Mat Mat Min Used RIF Installer . | . . . . Robots Hacked . | . . . . Non-combat . | . . . . Combat . | . . . . Robot Hacks Applied . | . . . . Relay Couplers Released . | . . . . Robots Rewired . | . . . . Allies Hacked . | . . . . Hacks Repelled . | . . . . Allies | -11 -10 -9 -9 -------- Run | Scr Mat Mat Min Total Allies . | . . . . Largest Group . | . . . . Highest-Rated Group . | . . . . Highest-Rated Ally . | . . . . Total Orders . | . . . . Ally Attacks . | . . . . Total Damage . | . . . . Kills . | . . . . Allies Corrupted . | . . . . Allies Melted . | . . . . Intel | -11 -10 -9 -9 ------- Run | Scr Mat Mat Min Robot Analysis Total . | . . . . Derelict Logs Recovered . | . . . . Drone Launches . | . . . . Drone Recoveries . | . . . . Exploration | -11 -10 -9 -9 ------------- Run | Scr Mat Mat Min Turns Passed 675 | 129 307 149 90 Spaces Moved 408 | 79 200 103 26 Core 8 | 4 4 . . Treads . | . . . . Legs . | . . . . Wheels 400 | 75 196 103 26 Hover . | . . . . Flight . | . . . . Fastest Speed 50 | 50 80 90 90 Average Speed 86 | 87 83 90 90 Slowest Speed 150 | 100 150 90 90 Overloaded Moves . | . . . . Propulsion Burnouts . | . . . . Robots Hopped . | . . . . Cave-ins Triggered . | . . . . Exploration Rate (%) 19 | 5 44 14 13 Regions Visited 3 Branch Regions 1 Pre-discovered Areas . | . . . . Known Exits Taken . | . . . . Unknown Exits Taken 3 | 1 1 1 . Scrap Searched 1 | . . . 1 Spaces Dug . | . . . . Terrain Destroyed 7 | . . . 7 Melee . | . . . . Projectile . | . . . . AOE 7 | . . . 7 Terrain Rammed . | . . . . Walls Destroyed . | . . . . Machines Disabled . | . . . . Actions | -11 -10 -9 -9 --------- Run | Scr Mat Mat Min Total 612 | 113 284 148 67 Wait 67 | . 31 28 8 Move 405 | 78 199 102 26 Hop . | . . . . Pick Up 27 | 10 7 7 3 Fast Attach 6 | 2 4 . . Attach 17 | 5 3 3 6 Detach . | . . . . Swap 6 | 2 1 1 2 Drop 9 | 2 5 1 1 Fire 75 | 14 34 6 21 Melee . | . . . . Ram . | . . . . Kick . | . . . . Crush . | . . . . Escape Stasis . | . . . . Rewire . | . . . . Trap . | . . . . Miscellaneous . | . . . . Route ------- -11/Scrapyard -10/Materials (discovered 3 exits: [*Mat] / *Min x2) -9/Materials -9/Mines History --------- Turn | Location | Event 72 | -11/Scrapyard | Discovered new exit (range 12) 130 | -11/Scrapyard | Entered Materials 169 | -10/Materials | Identified exit to Mines 250 | -10/Materials | Lost 3 parts (2n1w) 430 | -10/Materials | Discovered new exit (range 7) 437 | -10/Materials | Entered another Materials area 437 | -9/Materials | Evolved 2 slots: Utility x2 543 | -9/Materials | Build established: Scavenger-Mutant 572 | -9/Materials | Discovered new exit (range 12) 586 | -9/Materials | Entered Mines 643 | -9/Mines | Assembled infested the area 669 | -9/Mines | Core integrity fell below 50% 673 | -9/Mines | Core integrity fell below 20% 676 | -9/Mines | Destroyed self with Mini Grenade Launcher Last Messages --------------- 00660_ T-07 Excavator destroyed. 00664_ Lgt. Ion Engine destroyed. 00664_ Lgt. EM Pulse Cannon destroyed. 00664_ T-07 Excavator destroyed. 00664_ R-06 Scavenger collects Imp. Terrain Scanner. 00665_ Imp. Terrain Scanner destroyed. 00667_ Lgt. Assault Rifle destroyed. 00669_ ECM Suite destroyed. 00673_ Autogun destroyed. 00673_ System corrupted by crushing effect (+2). 00673_ Knocked back. 00674_ C-30 ARC bursts open, deploying its payload. 00674_ D-53 Grenadier unfolds itself. 00675_ R-06 Scavenger collects Seismic Analyzer. 00676_ as-66829 destroyed. 00676_ as-25246 destroyed. 00676_ as-69057 destroyed. 00676_ as-83149 destroyed. 00676_ Destroyed Asb. Hover Unit. 00676_ R-06 Scavenger destroyed. Map ----- +----------------------------------------------------+ | | | ?????????????????????????????????????????????????? | | ?????????????????????????????????????????????????? | | ?????????????????????????????????????????????????? | | ?????????????????????????????????????????????????? | | ?????????????????????????????????????????????????? | | ?????????????????????????????????????????????????? | | ?????????????????????????????????????????????????? | | ?????????????????????????????????????????????????? | | ?????????????????????????????????????????????????? | | ?????????????????????????????????????????????????? | | ?????????????????????????????????????????????????? | | ?????????????????????????????????????????????????? | | ?????????????????????????????????????????????????? | | ?????????????????????????????????????????????????? | | ??????????????????#???????????????? ???????????? | | ?????????????????????????????????? ???????????? | | ?????????????????????????????????? #???????????? | | ????????????????????????#???????? ?????????????? | | ????????????????????????????????" ??????????????? | | ??????????????????????????????? #???????????????? | | ??????????#??? ??????????????? #????????????????? | | ?????????????#??????#####????a #????????????????? | | ???????????????????## #### #?????????????????? | | ?????????????#?????# ##????????????????? | | ???????????????????# !@a% % ##???????????????? | | ??????????????????## !=%aa%a #???????????????? | | ?????????????????## d !# % #??????????????? | | ????????????????## d # #?????????????? | | ???????? ???##### ## # ??????????? | | ??????????### %#####?### ????????? | | ??????????## ##???????## ?????????? | | ???????????# ##????????# ?????????? | | ???????????## ##?????????a ?????????? | | ???????????##### ##????#??? = ??????????? | | ???????????????## #??????#??? =*%!??????????? | | ?????????????#??#== ##????#???? !%*=???????????? | | ???????#????????# ###????????? ?? ! ???????????? | | ?????????????#### ###?????????????? ?????????????? | | ???????????### #?????????????????????????????? | | ???#????????# ##?????#?#??? ?????????????????? | | ??????#???## =##????????#?????????????????????? | | ???????????# ##?????#?????????????????????????? | | ???????????# ?????????????????????????????????? | | ?????????? #??#?????#????? ??????????????????? | | ????????? #?????????#????????????????????????? | | ??????### ####???#???#???????????????????????????? | | ???????## ????????????#??????????????????????????? | | ???????? ??#????????#????#???????????????????????? | | ??????? ??? ????????????#????????????????????????? | +----------------------------------------------------+ Best States ------------- Heat Dissipation 28 Energy Generation 14 Energy Capacity 160 Matter Stores 300 Matter Capacity 300 Sight Range 16 Terrain Scan Range 16 Terrain Scan Density 60 ECM Strength 1 Evasion (%) 44 Offensive Hacking 10 Item Schematics ----------------- None Robot Schematics ------------------ None Fabricated ------------ Nothing Alien Tech Used ----------------- None Achievements -------------- None Challenges ------------ None Game ------ Seed ScanCouplerChip Manual? 0 Play Time 00:16:42 Cumulative 33.3 hours Start 2021.10.22 @ 22:39:06 End 2021.10.22 @ 23:01:22 Sessions 1 Manual Loads 0 Difficulty Rogue Special Mode None Game No. 39 Rogue 39 Adventurer 0 Explorer 0 Win Type - Total 0 Types 0/0/0/0/0/0/0/0/0 Lore% 23 Gallery% 31 Achievement% 23 Wizard Run 0 Options --------- ASCII 0 Keyboard 0 Movement Mouse Keybinds 0 Fullscreen 1 Font 18/SmallcapsGlow Map View 76x50 Tactical HUD 1 Map Filters NONE Filters NONE Steam 1 RUN: 4948bedf-5999-42b1-aa38-7f857c353be0